bitfinex-derivatives/quotes_ETHF0:USTF0_20250115
["timestamp","ask_amount","ask_price","bid_price","bid_amount"]
[1736971245183,6.54607366,3444.7,3444.6,1.3934]
[1736971245580,11.54607366,3444.7,3444.6,1.3934]
[1736971245780,10.96556366,3444.7,3443.6,2.0327]
[1736971246082,0.58068,3443.8,3443.6,2.0327]
[1736971246282,0.58068,3443.7,3443.6,2.0327]
[1736971246683,3.78848,3443.7,3443.6,2.0327]
[1736971246874,3.2078,3443.7,3442.7,43.55776366]
[1736971247075,3.78855,3443.3,3443.2,0.01075]
[1736971248078,3.2078,3443.5,3443.2,0.01075]
[1736971248386,0.7956,3444.1,3443.2,0.01075]
[1736971248574,0.58069,3443.7,3443.2,0.01075]
[1736971248778,0.7956,3444.1,3443.3,0.58074]
[1736971248979,0.7956,3444.1,3443.4,3.2078]
[1736971249179,0.58062,3444.1,3443.5,0.58071]
[1736971249379,0.00230399,3444.6,3443.8,3.2078]
[1736971249583,0.00230399,3444.6,3443.9,2.75776366]
[1736971249981,0.00230399,3444.6,3444.0,40.8]
[1736971249982,0.58056,3444.4,3444.0,40.8]
[1736971250281,0.58061,3444.1,3444.0,40.8]
[1736971251879,0.58067,3443.8,3443.5,4.20976366]
[1736971252084,0.58069,3443.7,3443.5,4.20976366]
[1736971252289,3.2078,3444.4,3443.6,40.8]
[1736971252585,0.58068,3443.7,3443.6,40.8]
[1736971252785,3.2078,3444.4,3443.6,40.8]
[1736971252786,0.58068,3443.8,3443.6,40.8]
[1736971253089,0.58068,3443.7,3443.6,40.8]
[1736971253883,0.5807,3443.6,3443.5,0.726]
[1736971254491,0.5807,3443.6,3443.5,41.526]
[1736971254785,0.5807,3443.6,3443.5,0.726]
[1736971255988,0.5807,3443.6,3443.5,6.69156366]
[1736971256285,0.5807,3443.6,3443.5,3.48376366]
[1736971256479,3.7885,3443.6,3443.5,0.726]
[1736971257385,0.5807,3443.6,3443.5,0.726]
[1736971258092,5.5807,3443.6,3443.5,0.726]
[1736971258291,0.58075,3443.3,3443.2,0.01075]
[1736971260183,0.58076,3443.2,3443.1,5.4437]
[1736971261484,3.2078,3443.7,3443.1,5.4437]
[1736971261694,995.0642,3457.0,3443.5,3.2078]
[1736971261695,1.451,3445.3,3443.5,3.2078]
[1736971261889,1.451,3445.3,3444.5,3.2078]
[1736971262088,3.2078,3445.0,3444.5,40.8]
[1736971262287,3.2078,3445.0,3444.5,41.38053]
[1736971262487,0.58049,3444.8,3444.5,44.58833]
[1736971262688,0.7748,3445.4,3444.5,44.58833]
[1736971262889,0.58049,3444.8,3444.5,44.58833]
[1736971263190,0.7748,3445.4,3444.5,44.5883]
[1736971263191,0.58048,3444.7,3444.5,44.5883]
[1736971263381,0.58048,3444.7,3444.5,44.58829]
[1736971263585,0.58045,3444.8,3444.5,44.58829]
[1736971263786,1.45099,3445.3,3444.5,44.58829]
[1736971263986,0.58043,3444.9,3444.5,44.0078]
[1736971264187,0.58042,3445.0,3444.5,44.58829]
[1736971264393,0.58043,3444.9,3444.5,44.58829]
[1736971264588,0.7748,3445.4,3444.5,44.58829]
[1736971264791,0.7281,3445.9,3444.5,44.67902678]
[1736971264996,0.58033,3445.5,3445.2,0.58035]
[1736971265196,0.7281,3445.9,3445.3,0.58034]
[1736971265392,3.9446,3446.0,3445.4,0.58032]
[1736971265593,0.58028,3445.8,3445.5,0.58031]
[1736971265889,0.58028,3445.8,3445.1,7.12656366]
[1736971266089,3.2078,3446.4,3445.6,3.2078]
[1736971266296,3.2078,3446.4,3445.8,0.58026]
[1736971266297,0.58025,3446.0,3445.8,0.58026]
[1736971266492,3.2078,3446.4,3445.6,3.2078]
[1736971266698,0.58028,3445.8,3445.6,3.2078]
[1736971266991,0.58027,3445.9,3445.6,3.7881]
[1736971267193,3.2078,3446.8,3445.6,3.2078]
[1736971267393,2.966,3454.1,3445.6,3.2078]
[1736971267394,4.65784,3447.3,3446.4,3.2078]
[1736971267587,2.75776366,3447.2,3446.4,3.2078]
[1736971267793,0.5802,3446.2,3445.8,40.8]
[1736971267991,2.75776366,3446.8,3445.8,40.8]
[1736971268191,3.2078,3446.9,3446.1,3.2078]
[1736971268388,2.75776366,3447.2,3446.4,0.58016]
[1736971268594,2.75776366,3447.2,3446.1,3.2078]
[1736971268595,2.75776366,3446.8,3446.1,3.2078]
[1736971268799,2.75776366,3446.8,3445.8,41.5422]
[1736971268995,0.5802,3446.3,3445.8,41.5422]
[1736971269194,0.5802,3446.3,3446.0,0.58023]
[1736971269398,3.51816366,3446.8,3445.8,41.5422]
[1736971269698,0.58022,3446.1,3445.8,0.7422]
[1736971269891,0.58022,3446.1,3445.8,1.32246]
[1736971270087,0.58022,3446.1,3445.8,0.7422]
[1736971270291,3.51816366,3446.8,3445.7,3.2078]
[1736971270487,0.58025,3446.0,3445.7,3.2078]
[1736971270687,3.51816366,3446.8,3445.7,3.2078]
[1736971270994,0.58023,3446.1,3445.7,3.78807]
[1736971271299,0.58026,3445.9,3445.7,3.2078]
[1736971271495,0.58027,3445.8,3445.7,3.2078]
[1736971271695,2.75776366,3446.4,3445.7,3.2078]
[1736971271900,0.58027,3445.8,3445.7,3.2078]
[1736971273291,2.75776366,3446.4,3445.7,3.2078]
[1736971273491,3.2078,3446.5,3445.7,3.2078]
[1736971273695,0.58022,3446.1,3445.7,3.2078]
[1736971273894,0.58024,3446.0,3445.8,0.58026]
[1736971274200,0.58023,3446.1,3445.8,0.58026]
[1736971274701,0.58027,3445.8,3445.7,3.2078]
[1736971274897,0.58024,3446.0,3445.7,3.78808]
[1736971275097,0.58027,3445.8,3445.7,3.2078]
[1736971275297,0.58025,3446.0,3445.7,3.78808]
[1736971275499,0.58027,3445.8,3445.7,3.2078]
[1736971275690,0.58025,3446.0,3445.7,3.78808]
[1736971275895,1.45042,3446.4,3445.7,3.2078]
[1736971276095,0.58026,3445.9,3445.7,3.2078]
[1736971276290,3.2078,3446.5,3445.7,3.2078]
[1736971276500,3.2078,3447.2,3446.2,3.2078]
[1736971276801,3.2078,3447.2,3445.9,0.7631]
[1736971276802,1.45013,3447.1,3445.9,0.7631]
[1736971277003,0.58018,3446.4,3446.1,0.5802]
[1736971277196,0.58018,3446.4,3446.1,0.58021]
[1736971277392,0.5802,3446.3,3446.1,0.81232]
[1736971277600,0.5802,3446.2,3446.1,0.2321]
[1736971281805,0.5802,3446.2,3446.1,2.2339]
[1736971282202,0.776,3446.8,3446.1,2.2339]
[1736971282399,0.5802,3446.2,3446.1,2.2339]
[1736971284911,0.58032,3445.5,3445.4,3.2078]
[1736971286205,0.58032,3445.5,3445.4,3.4399]
[1736971287006,0.58032,3445.5,3445.4,3.672]
[1736971287307,3.2078,3446.0,3445.4,3.672]
[1736971287703,0.58032,3445.5,3445.4,3.672]
[1736971289114,0.5803,3445.7,3445.5,0.58032]
[1736971289305,3.2078,3446.0,3445.4,3.672]
[1736971289609,0.58031,3445.6,3445.4,4.25232]
[1736971289807,0.58032,3445.5,3445.4,4.25232]
[1736971290008,3.2078,3446.0,3445.4,3.672]
[1736971290204,0.58031,3445.6,3445.5,0.58032]
[1736971290401,0.7704,3446.2,3445.4,3.672]
[1736971290708,0.58025,3445.9,3445.7,6.54583366]
[1736971290911,0.58027,3445.8,3445.7,3.2078]
[1736971291104,2.22094,3446.2,3445.4,1.1821]
[1736971291310,0.58032,3445.5,3445.4,0.4642]
[1736971291810,1.45059,3446.0,3445.4,0.4642]
[1736971292013,0.58032,3445.5,3445.4,0.4642]
[1736971292211,0.7704,3446.2,3445.7,0.58028]
[1736971292212,0.58028,3445.8,3445.7,0.58028]
[1736971292505,0.7704,3446.2,3445.9,0.58024]
[1736971292714,0.58015,3446.5,3446.0,0.58023]
[1736971293012,1.45037,3446.6,3445.8,0.7094]
[1736971293406,0.58025,3445.9,3445.8,0.7094]
[1736971295321,3.2078,3446.7,3445.8,0.7094]
[1736971295615,1.45042,3446.5,3445.8,0.7094]
[1736971295815,0.58025,3445.9,3445.8,0.7094]
[1736971296416,0.58025,3445.9,3445.8,1.28967]
[1736971296616,0.58025,3445.9,3445.8,2.45047]
[1736971296914,0.58025,3445.9,3445.8,1.8702]
[1736971298011,0.58025,3445.9,3445.8,1.1608]
[1736971299715,0.58025,3445.9,3445.8,1.8863]
[1736971311432,0.58025,3445.9,3445.8,2.46657]
[1736971311627,0.58025,3445.9,3445.8,1.8863]
[1736971315128,3.2078,3446.7,3445.8,1.8863]
[1736971315328,0.5802,3446.2,3446.1,3.2078]
[1736971316829,0.5802,3446.2,3446.1,3.9332]
[1736971317424,0.5802,3446.2,3446.1,4.1653]
[1736971322629,0.5802,3446.2,3446.1,0.9575]
[1736971326030,1.45038,3446.6,3446.1,4.1653]
[1736971326229,0.5802,3446.2,3446.1,4.1653]
[1736971326625,0.5802,3446.2,3446.1,4.3974]
[1736971326830,0.5802,3446.2,3446.1,5.5581]
[1736971331243,0.5802,3446.2,3446.1,2.3503]
[1736971331640,2.88048666,3446.2,3446.1,2.3503]
[1736971332037,0.5802,3446.2,3446.1,2.3503]
[1736971334250,2.88048666,3446.2,3446.1,2.3503]
[1736971335756,2.88048666,3446.2,3446.1,2.6156]
[1736971336354,0.5802,3446.2,3446.1,2.6156]
[1736971337160,2.88048666,3446.2,3446.1,2.6156]
[1736971342055,2.88048666,3446.2,3446.1,1.92884]
[1736971342363,8.65428666,3446.2,3445.2,3.9367]
[1736971342664,0.58035,3445.3,3445.2,3.9367]
[1736971343662,0.58035,3445.3,3445.2,3.2078]
[1736971344059,0.58037,3445.2,3445.1,0.2322]
[1736971344362,2.88065666,3445.2,3445.1,0.2322]
[1736971350370,2.87065666,3445.2,3445.1,0.2322]
[1736971351666,2.87065666,3445.2,3445.1,0.4644]
[1736971352960,0.57037,3445.2,3445.1,1.6254]
[1736971353162,1.45058,3446.1,3445.5,0.58031]
[1736971353367,1.45058,3446.1,3445.7,0.58028]
[1736971353368,0.58022,3446.1,3445.7,0.58028]
[1736971353665,0.58028,3445.7,3445.6,4.7205]
[1736971355774,0.58028,3445.7,3445.6,1.5127]
[1736971356179,0.58035,3445.3,3445.2,3.2078]
[1736971356374,0.58037,3445.2,3445.1,3.1668]
[1736971356876,2.88065666,3445.2,3445.1,3.1668]
[1736971359877,2.88065666,3445.2,3445.1,3.1568]
[1736971360680,0.58037,3445.2,3445.1,3.1568]
[1736971362084,0.58037,3445.2,3445.1,3.8824]
[1736971362282,2.88065666,3445.2,3445.1,3.8824]
[1736971364182,0.58037,3445.2,3445.1,3.8824]
[1736971364382,0.58031,3445.6,3445.4,0.58033]
[1736971364680,0.58031,3445.6,3445.5,4.0368]
[1736971366593,0.58031,3445.6,3445.5,4.2689]
[1736971369486,6.10871,3446.4,3445.5,4.2689]
[1736971369487,3.2078,3446.4,3445.5,4.2689]
[1736971369788,0.58022,3446.1,3446.0,3.2078]
[1736971373188,0.5802,3446.3,3446.1,0.5802]
[1736971373390,0.5802,3446.3,3446.0,3.2078]
[1736971373596,0.58021,3446.2,3446.0,3.78802]
[1736971373896,0.58022,3446.1,3446.0,3.2078]
[1736971374490,2.30028666,3446.5,3446.0,3.2078]
[1736971374688,0.58021,3446.2,3446.0,3.78803]
[1736971374889,1.4503,3446.7,3446.0,3.2078]
[1736971375084,2.90016,3447.3,3446.4,3.2078]
[1736971375085,0.58016,3446.5,3446.4,3.2078]
[1736971375295,0.58016,3446.5,3446.4,3.9657]
[1736971376190,0.58016,3446.5,3446.4,0.7579]
[1736971377596,2.30028666,3447.1,3446.4,0.7579]
[1736971377789,2.30028666,3447.1,3446.5,3.2078]
[1736971377990,0.58013,3446.6,3446.5,3.2078]
[1736971378589,1.44993,3447.6,3446.5,3.2078]
[1736971378795,2.30028666,3447.0,3446.6,0.7932]
[1736971379296,0.58009,3446.9,3446.6,1.37332]
[1736971379498,0.5801,3446.8,3446.6,1.37332]
[1736971379691,2.30028666,3447.0,3446.6,0.7932]
[1736971379893,0.58008,3446.9,3446.6,0.7932]
[1736971380196,0.58012,3446.7,3446.6,0.7932]
[1736971380399,0.58011,3446.8,3446.6,1.37333]
[1736971381600,0.58012,3446.7,3446.6,0.7932]
[1736971382302,0.58013,3446.6,3446.5,3.2078]
[1736971382908,2.30028666,3446.7,3446.4,0.2321]
[1736971383207,0.58015,3446.5,3446.4,0.2321]
[1736971383609,3.78795,3446.5,3446.4,0.2321]
[1736971386510,3.78795,3446.5,3446.4,0.9574]
[1736971388712,3.2078,3446.5,3445.5,0.2321]
[1736971388919,0.5803,3445.6,3445.5,0.2321]
[1736971389810,0.5803,3445.6,3445.5,0.4642]
[1736971390011,0.5803,3445.6,3445.5,0.6313]
[1736971397622,0.58029,3445.7,3445.5,0.6313]
[1736971397822,0.58027,3445.8,3445.6,3.7881]
[1736971398121,0.58019,3446.3,3446.1,0.58021]
[1736971398424,1.45032,3446.7,3446.2,4.8798]
[1736971398725,0.58018,3446.3,3446.2,1.672]
[1736971402028,0.58018,3446.3,3446.2,0.8421]
[1736971407121,0.5802,3446.2,3446.1,1.56]
[1736971407625,0.58006,3447.1,3446.6,0.58013]
[1736971407825,0.58007,3447.0,3446.7,1.602]
[1736971408230,0.58009,3446.9,3446.7,1.602]
[1736971408432,0.8504,3447.7,3446.7,1.602]
[1736971408627,3.2078,3448.8,3447.6,3.2078]
[1736971408831,0.57993,3447.8,3447.7,1.6109]
[1736971409030,1.44988,3447.7,3446.8,3.2078]
[1736971409223,2.30028666,3446.9,3446.8,4.0036]
[1736971409727,0.22961388,3447.8,3446.8,4.0036]
[1736971410027,3.9843,3447.9,3446.8,0.7958]
[1736971410229,2.30028666,3447.3,3446.8,0.7958]
[1736971410530,3.9843,3447.9,3446.8,0.7958]
[1736971410531,0.58004,3447.2,3446.8,0.7958]
[1736971410734,2.30028666,3447.0,3446.8,0.7958]
[1736971411028,2.30028666,3446.9,3446.2,3.2078]
[1736971411231,2.88046666,3446.3,3446.2,3.2078]
[1736971411433,2.88046666,3446.3,3445.8,1.7123]
[1736971411434,0.5802,3446.2,3446.1,1.3279]
[1736971411729,0.5802,3446.2,3445.4,3.2078]
[1736971411730,3.2078,3446.2,3445.4,3.2078]
[1736971412031,2.30028666,3445.5,3445.4,3.2078]
[1736971412226,3.2078,3446.2,3445.4,3.2078]
[1736971412434,2.30028666,3445.9,3445.4,3.4399]
[1736971412626,0.58028,3445.8,3445.4,3.672]
[1736971412825,2.30028666,3445.9,3445.4,3.672]
[1736971413027,0.58028,3445.8,3445.4,3.672]
[1736971413231,2.30028666,3445.6,3445.4,3.672]
[1736971413635,2.30028666,3445.9,3445.4,3.672]
[1736971413835,3.2078,3446.2,3445.5,0.58032]
[1736971414038,2.30028666,3446.3,3445.8,3.78806]
[1736971414228,2.30028666,3446.3,3445.9,3.02494]
[1736971414430,2.30028666,3446.3,3445.9,2.4447]
[1736971414731,2.30028666,3446.0,3445.9,2.4447]
[1736971415624,2.88051666,3446.0,3445.9,1.6179]
[1736971416232,2.30028666,3446.0,3445.9,1.6179]
[1736971416426,2.88051666,3446.0,3445.9,1.6179]
[1736971416835,2.88052666,3446.0,3445.8,3.2078]
[1736971417338,2.30028666,3446.0,3445.8,3.2078]
[1736971418335,4.0463,3446.6,3445.8,3.2078]
[1736971418336,2.30028666,3446.4,3445.8,3.2078]
[1736971418635,2.30028666,3446.4,3445.9,0.58025]
[1736971418837,2.30028666,3446.4,3446.0,0.58023]
[1736971419141,2.30028666,3446.4,3446.2,3.2078]
[1736971419332,2.30028666,3446.4,3446.3,1.6488]
[1736971419531,2.30028666,3446.4,3446.3,2.4503]
[1736971421236,0.58012,3446.7,3446.3,2.4503]
[1736971421237,3.2078,3447.0,3446.3,2.4503]
[1736971421427,2.30028666,3446.6,3446.3,2.4503]
[1736971421637,0.58018,3446.3,3446.2,3.2078]
[1736971421939,2.30028666,3446.3,3445.7,3.2078]
[1736971422134,2.30028666,3445.8,3445.7,3.2078]
[1736971422331,2.88055666,3445.8,3445.7,3.2078]
[1736971423241,0.58027,3445.8,3445.7,3.2078]
[1736971423433,2.88055666,3445.8,3445.7,3.2078]
[1736971425245,2.88055666,3445.8,3445.6,1.1609]
[1736971425246,0.58028,3445.7,3445.6,1.1609]
[1736971426736,1.38158,3445.7,3445.6,1.1609]
[1736971427139,9.58938,3445.7,3445.6,1.1609]
[1736971427436,10.40218,3445.7,3445.6,1.1609]
[1736971428137,10.40218,3445.7,3445.4,0.4642]
[1736971428138,0.58032,3445.5,3445.4,0.4642]
[1736971428532,5.58032,3445.5,3445.4,0.4642]
[1736971429242,0.58032,3445.5,3445.4,0.4642]
[1736971429442,2.88060666,3445.5,3445.4,0.4642]
[1736971429636,2.88060666,3445.5,3445.4,0.2321]
[1736971430332,2.88060666,3445.5,3445.4,0.5805]
[1736971430333,2.30028666,3445.5,3445.4,0.5805]
[1736971430535,2.88060666,3445.5,3445.4,0.5805]
[1736971431044,2.88060666,3445.5,3445.4,0.8126]
[1736971431045,7.88060666,3445.5,3445.4,0.8126]
[1736971431242,2.88060666,3445.5,3445.4,0.8126]
[1736971431645,2.88060666,3445.5,3445.4,1.0447]
[1736971432746,0.58032,3445.5,3445.4,0.8126]
[1736971434050,2.88058666,3445.6,3445.4,1.0447]
[1736971434345,2.30028666,3445.6,3445.5,0.7905]
[1736971434648,2.88058666,3445.6,3445.5,2.4387]
[1736971435438,2.88058666,3445.6,3445.5,1.624]
[1736971435944,5.50808666,3445.6,3445.4,1.0447]
[1736971436146,0.58032,3445.5,3445.4,1.0447]
[1736971437247,3.78812,3445.5,3445.4,1.0447]
[1736971437546,4.59312,3445.5,3445.4,1.0447]
[1736971440545,0.58044,3444.8,3444.7,0.8296]
[1736971440747,2.88072666,3444.8,3444.7,0.8296]
[1736971442449,3.2078,3445.5,3444.7,0.8296]
[1736971442655,2.30028666,3445.7,3445.2,3.2078]
[1736971442850,2.88061666,3445.4,3445.3,1.6197]
[1736971443351,0.58033,3445.4,3445.3,1.6197]
[1736971444748,0.58037,3445.2,3445.1,1.161]
[1736971444946,6.30708089,3445.2,3445.1,1.161]
[1736971445148,6.30708089,3445.2,3444.4,3.2078]
[1736971445149,5.95891089,3445.2,3444.4,3.2078]
[1736971445456,3.33155089,3444.8,3444.4,3.2078]
[1736971445660,0.58045,3444.7,3444.4,3.2078]
[1736971446446,0.58045,3444.7,3443.9,3.2078]
[1736971446447,8.2078,3444.7,3443.9,3.2078]
[1736971446650,2.75111089,3444.0,3443.9,3.2078]
[1736971446846,2.75111089,3444.4,3443.9,3.2078]
[1736971447041,0.58052,3444.3,3444.0,0.8373]
[1736971447345,2.75111089,3444.4,3444.0,0.8373]
[1736971447546,0.58055,3444.1,3444.0,0.8373]
[1736971447741,0.58055,3444.1,3444.0,1.1627]
[1736971448248,0.58055,3444.1,3444.0,0.3254]
[1736971450862,0.58055,3444.1,3443.1,3.2078]
[1736971450863,0.58071,3443.2,3443.1,3.2078]
[1736971451164,3.33182089,3443.2,3443.1,3.2078]
[1736971451358,0.58074,3443.0,3442.9,1.5913]
[1736971451852,0.58079,3442.7,3442.6,3.2078]
[1736971452053,0.58079,3442.7,3442.6,0.2323]
[1736971452054,3.33190089,3442.7,3442.6,0.2323]
[1736971453155,6.53970089,3442.7,3442.6,0.2323]
[1736971453359,6.53970089,3442.7,3441.8,1.6248]
[1736971453360,0.58089,3442.1,3441.8,1.6248]
[1736971453561,0.58093,3441.9,3441.8,0.8085]
[1736971454069,2.75111089,3442.1,3441.4,0.8557]
[1736971454555,0.58096,3441.7,3441.4,0.8557]
[1736971454757,2.75111089,3442.1,3441.4,1.0881]
[1736971454955,0.58099,3441.5,3441.4,1.0881]
[1736971455255,2.75111089,3442.1,3441.4,1.0881]
[1736971455459,3.2078,3442.2,3441.6,3.78877]
[1736971455460,3.78868,3442.2,3441.6,3.78877]
[1736971455758,0.58091,3442.0,3441.6,3.2078]
[1736971455959,3.2078,3442.2,3441.6,4.37]
[1736971456156,0.58089,3442.1,3441.6,4.37]
[1736971456357,0.58082,3442.6,3442.0,3.7887]
[1736971456561,3.2078,3442.7,3442.1,0.8632]
[1736971456757,0.58078,3442.8,3442.4,3.2078]
[1736971456962,2.75111089,3443.1,3442.5,0.854]
[1736971457464,0.58081,3442.6,3442.5,0.854]
[1736971458167,0.58081,3442.6,3442.5,1.0863]
[1736971458358,0.58081,3442.6,3442.5,0.2323]
[1736971459066,3.54141089,3442.7,3441.7,1.6951]
[1736971459268,0.58094,3441.8,3441.7,2.4894]
[1736971460566,2.75111089,3442.2,3441.7,2.4894]
[1736971460761,0.58094,3441.8,3441.7,2.4894]
[1736971461070,2.75111089,3442.2,3441.7,2.4894]
[1736971461273,0.58091,3442.1,3441.7,2.4894]
[1736971461463,2.75111089,3442.2,3441.7,2.4894]
[1736971461665,3.33192089,3442.6,3442.0,0.5809]
[1736971461963,3.2078,3442.9,3442.0,3.2078]
[1736971462165,3.78856,3442.9,3442.1,0.58089]
[1736971462362,3.2078,3442.9,3442.0,3.2078]
[1736971462565,3.2078,3442.9,3442.1,0.58088]
[1736971462769,2.75111089,3442.6,3442.1,0.58088]
[1736971463068,2.75111089,3442.6,3442.0,3.2078]
[1736971463663,0.58087,3442.3,3442.0,3.2078]
[1736971463863,2.75111089,3442.6,3442.0,3.2078]
[1736971464064,0.58092,3442.0,3441.7,2.7121]
[1736971464261,2.75111089,3442.2,3441.7,2.7121]
[1736971464460,0.58094,3441.8,3441.7,2.7121]
[1736971464664,3.33205089,3441.8,3441.7,2.7121]
[1736971466170,3.33205089,3441.8,3441.7,102.7121]
[1736971467562,2.75111089,3441.8,3441.7,102.7121]
[1736971467765,3.2078,3442.4,3441.7,102.7121]
[1736971468064,3.33188089,3442.9,3442.4,0.58083]
[1736971468263,3.33187089,3442.9,3442.5,3.02882]
[1736971468467,2.75111089,3442.9,3442.5,2.6803]
[1736971468664,2.75111089,3442.9,3442.5,3.49342]
[1736971468867,0.58081,3442.6,3442.5,2.9126]
[1736971469175,0.58081,3442.6,3442.5,1.2792]
[1736971469366,0.58081,3442.6,3442.5,0.4646]
[1736971475377,0.58091,3442.0,3441.8,0.8456]
[1736971475576,0.58094,3441.8,3441.7,100.2227]
[1736971476073,0.58094,3441.8,3441.7,88.86097482]
[1736971476273,1.43714,3441.8,3441.7,88.86097482]
[1736971477075,6.43714,3441.8,3441.7,88.86097482]
[1736971477279,6.43714,3441.8,3441.7,80.20296971]
[1736971477481,6.43714,3441.8,3441.7,79.21857971]
[1736971477678,6.43714,3441.8,3441.7,78.39774971]
[1736971477873,6.43714,3441.8,3441.7,76.89057971]
[1736971478073,6.43714,3441.8,3441.7,76.07937971]
[1736971478276,6.66782369,3441.8,3441.7,69.67035]
[1736971478474,6.66782369,3441.8,3441.7,68.48209]
[1736971478771,9.41893458,3441.8,3441.7,10.81653162]
[1736971478972,6.66782369,3441.8,3441.7,5.13216192]
[1736971479176,0.5812,3440.3,3439.8,3.2078]
[1736971479374,0.58123,3440.1,3440.0,5.8112]
[1736971479568,3.78903,3440.1,3440.0,5.8112]
[1736971479775,3.2078,3440.1,3439.5,2.4925]
[1736971479970,2.75111089,3440.0,3439.5,1.6832]
[1736971480171,0.58131,3439.6,3439.5,6.6597]
[1736971480375,2.75111089,3440.0,3439.5,6.6597]
[1736971480572,0.58126,3439.9,3439.8,5.8112]
[1736971481576,0.58135,3439.4,3439.1,0.8384]
[1736971481977,2.75111089,3439.6,3439.3,5.8112]
[1736971482175,0.58137,3439.3,3439.1,0.8384]
[1736971482382,3.78916,3439.3,3439.2,5.8112]
[1736971482573,3.78916,3439.3,3438.6,0.7875]
[1736971482574,2.75111089,3439.2,3439.0,5.8112]
[1736971482777,4.08811089,3439.6,3439.2,5.8112]
[1736971483077,4.08811089,3439.6,3439.3,5.8112]
[1736971483078,0.58136,3439.4,3439.3,5.8112]
[1736971483685,0.58138,3439.3,3439.0,1.1631]
[1736971483872,3.78918,3439.3,3439.2,5.8112]
[1736971484275,3.2078,3439.3,3439.2,5.8112]
[1736971484481,0.58134,3439.5,3439.2,5.8112]
[1736971484681,0.58135,3439.4,3439.3,5.8112]
[1736971484890,0.58135,3439.4,3439.3,6.538]
[1736971485277,0.58135,3439.5,3439.3,6.538]
[1736971485581,0.58135,3439.5,3439.4,5.8112]
[1736971485783,0.58135,3439.4,3439.3,6.538]
[1736971486888,0.58135,3439.5,3439.3,6.538]
[1736971487087,0.58135,3439.5,3439.4,5.8112]
[1736971487688,0.58133,3439.5,3439.4,5.8112]
[1736971489594,0.58133,3439.5,3439.4,6.0437]
[1736971494394,1.43553,3439.5,3439.4,6.0437]
[1736971496694,1.43553,3439.5,3439.4,5.51930439]
[1736971497395,1.43553,3439.5,3439.4,5.28750396]
[1736971498906,0.8542,3439.5,3439.3,0.72600001]
[1736971499100,0.58135,3439.4,3439.3,0.72600001]
[1736971499610,3.2078,3439.7,3439.3,0.72600001]
[1736971499808,3.2078,3439.7,3439.4,0.8184]
[1736971500104,0.58133,3439.5,3439.4,1.6563]
[1736971501203,3.2078,3439.7,3439.4,1.6563]
[1736971501406,0.58133,3439.5,3439.4,1.6563]
[1736971502306,0.58133,3439.5,3439.3,0.72600001]
[1736971502307,3.2078,3439.7,3439.3,0.72600001]
[1736971502610,3.33246089,3439.4,3439.3,0.72600001]
[1736971504404,3.33246089,3439.4,3439.3,0.95860001]
[1736971505104,2.75111089,3439.4,3439.0,1.1631]
[1736971505307,3.7892,3439.1,3439.0,1.1631]
[1736971506111,3.7892,3439.1,3439.0,0.75182994]
[1736971507207,3.7892,3439.1,3439.0,0.98442994]
[1736971508001,5.0852,3439.1,3439.0,0.98442994]
[1736971508406,3.7892,3439.1,3439.0,0.98442994]
[1736971510302,4.6684,3439.1,3439.0,0.36608994]
[1736971510710,3.7892,3439.1,3439.0,0.36608994]
[1736971514211,4.0193373,3439.1,3439.0,0.36608994]
[1736971515508,3.2078,3439.3,3439.0,0.13348994]
[1736971515708,0.58137,3439.3,3439.1,1.489]
[1736971515916,3.78915,3439.4,3439.1,2.2947]
[1736971516110,0.58135,3439.5,3439.1,2.2947]
[1736971516311,2.75111089,3439.7,3439.1,2.2947]
[1736971516516,2.75111089,3439.7,3439.1,2.5273]
[1736971516517,0.58138,3439.2,3439.1,2.5273]
[1736971517109,3.2078,3439.5,3439.1,2.5273]
[1736971517510,0.58138,3439.2,3439.1,1.0905]
[1736971517710,0.58138,3439.2,3439.1,0.2326]
[1736971517911,1.23448,3439.2,3439.1,0.2326]
[1736971518512,1.23448,3439.2,3439.1,1.3956]
[1736971519611,0.6531,3439.2,3438.8,0.2326]
[1736971519822,6.54034089,3438.9,3438.8,0.2326]
[1736971520021,7.83634089,3438.9,3438.8,0.2326]
[1736971520821,3.78923,3438.9,3438.8,0.2326]
[1736971521021,0.58143,3438.9,3438.8,1.3957]
[1736971521419,0.58142,3439.0,3438.8,1.3957]
[1736971521622,0.58143,3438.9,3438.8,1.3957]
[1736971522319,3.78917,3439.3,3438.8,1.3957]
[1736971522520,2.75111089,3439.6,3439.0,3.2078]
[1736971522718,0.58137,3439.3,3439.1,0.635]
[1736971523021,2.75111089,3439.6,3439.2,1.3237]
[1736971523218,0.58136,3439.3,3439.2,1.3237]
[1736971525727,0.58135,3439.4,3439.2,1.3237]
[1736971526022,0.58136,3439.3,3439.2,1.3237]
[1736971527012,3.2078,3439.4,3439.1,0.8676]
[1736971527216,3.33249089,3439.2,3439.1,0.8676]
[1736971528020,3.33249089,3439.2,3439.1,0.2326]
[1736971528226,0.58143,3438.9,3438.8,1.20583778]
[1736971528416,3.78923,3438.9,3438.8,1.20583778]
[1736971529526,3.78923,3438.9,3438.8,1.43843778]
[1736971530220,3.78923,3438.9,3438.8,0.63093516]
[1736971530422,0.58157,3438.1,3438.0,3.2078]
[1736971531428,1.45388,3438.3,3437.7,0.6364]
[1736971531631,0.34902,3437.8,3437.7,0.6364]
[1736971533719,3.2078,3438.1,3437.7,0.6364]
[1736971533925,3.33264089,3438.4,3437.8,0.58162]
[1736971534126,2.75111089,3438.4,3437.9,1.3002]
[1736971534441,0.58158,3438.0,3437.9,1.3002]
[1736971535131,0.58158,3438.0,3437.9,1.5329]